bitfinex-derivatives/quotes_SOLF0:USTF0_20250929
["timestamp","ask_amount","ask_price","bid_price","bid_amount"]
[1759108258020,7.32,209.4,209.36,123.25]
[1759108258215,7.32,209.4,209.36,116.14]
[1759108258518,7.32,209.4,209.37,7.11]
[1759108258922,4.2962,209.4,209.36,116.14]
[1759108259113,1.40046902,209.41,209.36,116.14]
[1759108259614,7.32,209.4,209.36,116.14]
[1759108259823,7.32,209.4,209.33,8.51046902]
[1759108260621,4.2964,209.39,209.33,8.51046902]
[1759108260815,7.32,209.4,209.33,8.51046902]
[1759108261210,7.32,209.4,209.33,7.11]
[1759108261417,7.32,209.4,209.33,8.51046902]
[1759108261812,4.2959,209.41,209.35,1.40046902]
[1759108262118,7.32,209.44,209.36,7.11]
[1759108262314,4.2955,209.43,209.36,7.11]
[1759108262514,4.2955,209.43,209.31,154.00754633]
[1759108262515,4.2955,209.43,209.37,1.40046902]
[1759108262813,7.32,209.48,209.4,7.11]
[1759108263013,7.32,209.46,209.37,7.11]
[1759108264624,4.2953,209.44,209.37,7.11]
[1759108265322,11.6153,209.44,209.37,7.11]
[1759108268124,7.32,209.41,209.37,7.11]
[1759108269326,7.32,209.41,209.35,1.40046902]
[1759108269625,7.32,209.41,209.36,7.11]
[1759108270725,7.32,209.41,209.35,1.40046902]
[1759108270926,7.32,209.41,209.36,7.11]
[1759108271127,7.32,209.41,209.35,8.51046902]
[1759108271427,7.32,209.41,209.35,12.80736902]
[1759108272922,7.32,209.41,209.33,5.69786902]
[1759108273127,7.32,209.41,209.33,1.40046902]
[1759108273428,8.72046902,209.41,209.32,7.12]
[1759108273831,4.2964,209.39,209.32,7.12]
[1759108274027,1.40046902,209.41,209.32,7.12]
[1759108274232,8.03,209.4,209.32,7.12]
[1759108274430,9.43046902,209.37,209.31,73.92]
[1759108274639,1.40046902,209.33,209.27,1.1740328]
[1759108274927,8.03,209.32,209.27,1.1740328]
[1759108275332,1.40046902,209.33,209.27,1.1740328]
[1759108278832,1.40046902,209.36,209.28,11.4183]
[1759108280235,1.40046902,209.36,209.29,4.2981]
[1759108280735,1.40046902,209.36,209.3,7.12]
[1759108281236,8.03,209.37,209.31,4.2979]
[1759108281938,1.40046902,209.38,209.32,11.4175]
[1759108283134,9.43046902,209.4,209.32,11.4175]
[1759108283648,9.43046902,209.4,209.32,7.12]
[1759108284440,1.40046902,209.42,209.34,7.12]
[1759108284734,7.37,209.43,209.36,7.12]
[1759108286641,4.2958,209.42,209.36,7.12]
[1759108286839,7.37,209.39,209.32,7.12]
[1759108287043,1.40046902,209.38,209.32,7.12]
[1759108288245,7.37,209.39,209.32,7.12]
[1759108288743,1.40046902,209.47,209.38,8.52046902]
[1759108288946,7.37,209.46,209.38,8.52046902]
[1759108289550,11.6649,209.46,209.38,8.52046902]
[1759108290251,4.2944,209.48,209.41,7.12]
[1759108290845,11.6644,209.48,209.41,7.12]
[1759108293751,7.37,209.48,209.41,7.12]
[1759108295843,7.37,209.48,209.42,1.40046902]
[1759108296047,7.37,209.48,209.43,7.12]
[1759108296249,7.37,209.48,209.42,1.40046902]
[1759108296449,7.37,209.48,209.43,7.12]
[1759108296752,7.37,209.48,209.42,1.40046902]
[1759108296948,7.37,209.48,209.43,7.12]
[1759108297153,7.37,209.51,209.43,11.4154]
[1759108297453,7.37,209.51,209.44,1.40046902]
[1759108297847,7.37,209.5,209.43,11.4154]
[1759108299759,4.2942,209.49,209.43,7.12]
[1759108300352,7.37,209.5,209.43,7.12]
[1759108301552,11.6642,209.5,209.43,7.12]
[1759108306361,7.37,209.48,209.41,1.40046902]
[1759108306556,7.37,209.48,209.41,8.52046902]
[1759108307056,7.37,209.48,209.42,4.2954]
[1759108307360,7.37,209.48,209.43,7.12]
[1759108307556,4.2938,209.51,209.44,7.12]
[1759108307758,4.2938,209.51,209.45,1.40046902]
[1759108310362,8.77046902,209.5,209.41,8.52046902]
[1759108311061,7.37,209.48,209.41,8.52046902]
[1759108311760,11.6644,209.48,209.41,8.52046902]
[1759108312161,11.6644,209.48,209.41,12.81616902]
[1759108312362,11.6644,209.48,209.41,11.4157]
[1759108313259,17.07615,209.52,209.43,7.12]
[1759108313963,21.36975,209.52,209.45,4.2949]
[1759108314261,21.36975,209.52,209.45,11.4049]
[1759108317366,17.07615,209.52,209.48,7.11]
[1759108317568,7.92,209.51,209.48,7.11]
[1759108317866,7.92,209.51,209.47,11.4046]
[1759108320267,7.92,209.51,209.47,4.2946]
[1759108320468,7.92,209.51,209.47,11.4046]
[1759108320862,9.70615,209.52,209.49,7.11]
[1759108322364,17.62615,209.52,209.49,7.11]
[1759108323766,9.70615,209.52,209.46,11.4048]
[1759108325568,17.62615,209.52,209.49,7.11]
[1759108326169,9.70615,209.52,209.49,7.11]
[1759108327373,17.62615,209.52,209.49,7.11]
[1759108327671,7.92,209.51,209.48,11.4044]
[1759108329067,7.92,209.51,209.48,25.93455728]
[1759108329667,7.92,209.51,209.48,18.82455728]
[1759108329873,7.92,209.51,209.49,7.11]
[1759108334076,7.92,209.51,209.48,21.60015728]
[1759108335983,9.70615,209.52,209.48,14.53015728]
[1759108336182,17.37615,209.52,209.46,4.2948]
[1759108336874,9.70615,209.52,209.46,7.07]
[1759108337577,7.67,209.51,209.48,4.2943]
[1759108337778,7.67,209.51,209.48,25.49223344]
[1759108338475,7.67,209.51,209.48,18.42223344]
[1759108338679,7.67,209.51,209.49,7.07]
[1759108342589,17.37615,209.52,209.49,7.07]
[1759108343678,17.37615,209.52,209.49,7.08]
[1759108345084,7.57,209.51,209.49,7.08]
[1759108346591,7.57,209.51,209.48,141.56223344]
[1759108346987,7.57,209.51,209.49,7.08]
[1759108349192,17.27615,209.52,209.49,123.12]
[1759108349993,17.27615,209.52,209.5,7.08]
[1759108350293,17.27615,209.52,209.49,116.04]
[1759108350495,7.57,209.51,209.49,116.04]
[1759108350794,7.57,209.51,209.49,123.12]
[1759108350996,9.70615,209.52,209.49,127.414]
[1759108351195,17.27615,209.52,209.49,127.414]
[1759108353299,9.70615,209.52,209.49,127.414]
[1759108353490,7.57,209.51,209.49,127.414]
[1759108353896,9.70615,209.52,209.5,7.08]
[1759108354295,9.70615,209.52,209.51,116.02]
[1759108354998,9.70615,209.52,209.51,123.1]
[1759108355194,9.09876255,209.52,209.51,123.1]
[1759108355496,9.09876255,209.52,209.51,128.4536995]
[1759108356299,9.09876255,209.52,209.51,12.4336995]
[1759108356593,7.57,209.6,209.54,7.08]
[1759108356798,7.57,209.6,209.55,116.02]
[1759108357000,7.57,209.6,209.56,116.02]
[1759108357301,66.7371,209.69,209.57,7.08]
[1759108357302,7.57,209.64,209.57,7.08]
[1759108357695,7.57,209.64,209.58,116.02]
[1759108359200,4.2909,209.65,209.58,116.02]
[1759108359401,7.57,209.64,209.58,116.02]
[1759108359595,7.57,209.63,209.58,116.02]
[1759108359794,2.18719132,209.66,209.58,116.02]
[1759108359995,1.19227761,209.65,209.58,116.02]
[1759108360495,7.57,209.68,209.59,7.08]
[1759108361396,4.2902,209.69,209.59,11.372]
[1759108361601,68.91399132,209.72,209.59,11.372]
[1759108361896,2.18719132,209.69,209.59,11.372]
[1759108362703,4.2905,209.68,209.59,11.372]
[1759108363002,7.57,209.67,209.59,11.372]
[1759108363799,11.8607,209.66,209.59,7.08]
[1759108365200,7.57,209.65,209.58,116.02]
[1759108365397,4.2907,209.66,209.58,116.02]
[1759108365597,7.57,209.65,209.58,116.02]
[1759108365901,7.57,209.64,209.58,116.02]
[1759108366708,2.18719132,209.66,209.58,116.02]
[1759108366904,7.57,209.65,209.54,4.293]
[1759108367207,7.57,209.62,209.53,7.08]
[1759108368503,4.2919,209.61,209.53,7.08]
[1759108368700,7.57,209.6,209.53,7.08]
[1759108374113,11.8621,209.6,209.53,7.08]
[1759108374411,13.26051985,209.6,209.53,7.08]
[1759108377114,13.26051985,209.6,209.53,11.3732]
[1759108380315,11.8621,209.6,209.53,11.3732]
[1759108380917,4.2923,209.59,209.53,7.08]
[1759108381110,7.42,209.58,209.51,120.5937]
[1759108381310,7.42,209.58,209.52,7.11]
[1759108382416,7.42,209.58,209.52,8.50841985]
[1759108383616,7.42,209.58,209.51,116.3]
[1759108383814,1.39841985,209.56,209.48,14.12793344]
[1759108384018,7.42,209.53,209.46,7.11]
[1759108384515,1.39841985,209.52,209.46,7.11]
[1759108384817,7.42,209.51,209.46,7.11]
[1759108385014,1.39841985,209.52,209.46,7.11]
[1759108385214,7.42,209.51,209.46,13.99045487]
[1759108385517,7.42,209.49,209.42,5.3536995]
[1759108385721,7.42,209.49,209.41,5.3536995]
[1759108385918,7.42,209.49,209.41,12.4636995]
[1759108386310,66.7617,209.61,209.43,7.11]
[1759108386311,7.42,209.55,209.43,7.11]
[1759108386513,1.39841985,209.54,209.45,7.11]
[1759108386711,7.42,209.53,209.45,7.11]
[1759108387621,7.42,209.53,209.45,11.405]
[1759108389022,7.42,209.53,209.46,7.11]
[1759108389516,7.42,209.53,209.47,4.2946]
[1759108390520,7.42,209.53,209.48,7.11]
[1759108390922,7.42,209.53,209.47,4.2946]
[1759108391122,7.42,209.53,209.47,11.4046]
[1759108391827,7.42,209.53,209.47,7.11]
[1759108392418,11.7135,209.53,209.47,7.11]
[1759108396028,7.93,209.6,209.49,7.11]
[1759108396234,7.93,209.57,209.49,8.50841985]
[1759108396834,7.93,209.57,209.5,7.11]
[1759108397235,7.93,209.57,209.52,7.11]
[1759108397441,5.69041985,209.6,209.52,7.11]
[1759108397839,7.93,209.59,209.52,7.11]
[1759108398136,7.93,209.57,209.5,4.294]
[1759108398838,12.2226,209.57,209.49,13.86211935]
[1759108399539,12.2226,209.57,209.49,8.50841985]
[1759108399940,7.93,209.57,209.5,4.2939]
[1759108400241,5.69061985,209.59,209.51,8.50841985]
[1759108400242,4.2922,209.59,209.51,8.50841985]
[1759108401541,4.2922,209.59,209.51,12.80201985]
[1759108402141,7.93,209.56,209.48,7.11]
[1759108402535,7.93,209.56,209.5,7.11]
[1759108403143,9.32841985,209.59,209.5,7.11]
[1759108404448,4.2927,209.57,209.5,7.11]
[1759108404844,11.6927,209.57,209.5,7.11]
[1759108406144,4.2929,209.56,209.5,7.11]
[1759108408846,7.4,209.57,209.5,7.11]
[1759108409150,7.4,209.6,209.52,7.1]
[1759108410551,108.0,209.65,209.37,8.01498548]
[1759108410552,74.2196,209.43,209.37,8.01498548]
[1759108410749,66.8228,209.42,209.34,14.0213607]
[1759108410947,66.8221,209.42,209.27,45.16199923]
[1759108411250,4.2969,209.36,209.27,21.18049863]
[1759108411649,8.79841985,209.37,209.27,21.18049863]
[1759108411845,1.39841985,209.36,209.27,21.18049863]
[1759108414152,7.4,209.31,209.27,14.08049863]
[1759108414452,1.39841985,209.29,209.25,0.83138229]
[1759108414755,8.79841985,209.29,209.25,0.83138229]
[1759108415053,1.39841985,209.29,209.26,7.1]
[1759108415242,1.39841985,209.29,209.25,0.83138229]
[1759108415243,8.79841985,209.29,209.25,0.83138229]
[1759108415443,8.79841985,209.29,209.25,7.93138229]
[1759108415843,1.39841985,209.29,209.26,7.1]
[1759108421566,1.39841985,209.29,209.27,7.1]
[1759108421770,4.2968,209.37,209.26,7.1]
[1759108421771,1.39841985,209.33,209.26,7.1]
[1759108425869,1.39841985,209.35,209.26,7.1]
[1759108427460,5.69551985,209.35,209.26,7.1]
[1759108427866,7.4,209.34,209.26,7.1]
[1759108429074,7.4,209.31,209.25,15.12462394]
[1759108430672,11.6979,209.31,209.25,15.12462394]
[1759108431674,7.4,209.28,209.25,15.12462394]
[1759108431875,1.39841985,209.29,209.25,14.29324165]
[1759108432066,7.4,209.28,209.22,7.1]
[1759108432468,7.4,209.28,209.22,7.93163064]
[1759108433362,7.4,209.28,209.19,7.1]
[1759108433773,7.4,209.28,209.19,7.93169027]
[1759108434668,7.4,209.28,209.19,22.52642567]
[1759108434866,7.4,209.28,209.2,7.15]
[1759108435376,4.2979,209.31,209.23,7.15]
[1759108439776,4.2979,209.31,209.23,11.4493]
[1759108441771,8.03,209.3,209.23,11.4493]
[1759108447278,8.03,209.3,209.24,4.299]
[1759108459288,8.03,209.3,209.24,11.419]
[1759108461585,4.298,209.31,209.24,7.12]
[1759108461792,7.55,209.3,209.24,7.12]
[1759108463597,7.55,209.3,209.21,7.12]
[1759108464586,7.3,209.32,209.25,4.2989]
[1759108464796,11.5978,209.32,209.25,11.4189]
[1759108465395,4.298,209.31,209.25,11.4189]
[1759108465588,11.598,209.31,209.25,11.4189]
[1759108466401,11.598,209.31,209.25,7.12]
[1759108470791,4.2982,209.3,209.25,7.12]
[1759108470993,7.3,209.29,209.23,4.2994]
[1759108471586,11.5984,209.29,209.22,7.12]
[1759108471790,7.3,209.29,209.22,7.12]
[1759108472598,4.2986,209.28,209.22,7.12]
[1759108473199,7.3,209.27,209.22,7.12]
[1759108473395,7.3,209.27,209.21,7.12]
[1759108473699,11.5988,209.27,209.21,7.12]
[1759108474296,4.299,209.26,209.21,7.12]
[1759108475600,4.2985,209.28,209.22,7.12]
[1759108476796,11.5985,209.28,209.22,7.12]
[1759108478199,4.2988,209.27,209.22,7.12]
[1759108478900,7.3,209.26,209.2,4.2999]
[1759108479297,7.3,209.26,209.19,15.42642567]
[1759108479499,7.3,209.26,209.23,7.12]
[1759108480095,2.19161755,209.32,209.22,7.12]
[1759108480096,7.3,209.31,209.22,7.12]
[1759108481597,11.598,209.31,209.23,4.2993]
[1759108482403,4.2982,209.3,209.23,4.2993]
[1759108482604,7.3,209.29,209.23,4.2993]
[1759108483602,7.3,209.29,209.24,7.12]
[1759108483805,11.5977,209.32,209.25,7.12]
[1759108484106,7.3,209.32,209.25,7.12]
[1759108485702,4.2982,209.3,209.25,7.12]
[1759108485906,7.3,209.29,209.25,7.12]
[1759108486207,7.3,209.29,209.21,7.12]
[1759108486409,11.5984,209.29,209.21,7.12]
[1759108488806,11.5984,209.29,209.22,4.2997]
[1759108489008,11.5984,209.29,209.23,7.12]
[1759108495011,4.2986,209.28,209.23,7.12]
[1759108495206,11.8186,209.28,209.21,7.12]
[1759108497911,11.8186,209.28,209.21,11.4197]
[1759108498211,11.8186,209.28,209.22,7.12]
[1759108498605,7.52,209.28,209.22,7.12]
[1759108500210,11.8186,209.28,209.22,7.12]
[1759108501817,7.52,209.28,209.23,4.2994]
[1759108502016,7.52,209.28,209.24,7.12]
[1759108502216,7.52,209.3,209.24,7.12]
[1759108502815,7.52,209.28,209.21,7.12]
[1759108504015,7.52,209.28,209.24,4.2991]
[1759108504214,7.52,209.32,209.25,123.76]
[1759108504421,1.40264549,209.35,209.26,8.52264549]
[1759108504721,7.52,209.35,209.26,8.52264549]
[1759108505121,7.52,209.35,209.29,4.2981]
[1759108505321,67.68011897,209.43,209.29,7.12]
[1759108505513,7.52,209.39,209.32,7.12]
[1759108505725,7.52,209.39,209.33,12.82004549]
[1759108507822,2.26336446,209.43,209.33,12.82004549]
[1759108508022,7.52,209.42,209.33,12.82004549]
[1759108509622,1.40264549,209.43,209.33,12.82004549]
[1759108509832,7.52,209.42,209.33,12.82004549]
[1759108510222,4.2958,209.42,209.33,12.82004549]
[1759108510427,7.52,209.41,209.33,8.52264549]
[1759108510623,8.92264549,209.41,209.32,22.16]
[1759108510829,7.52,209.38,209.32,22.16]
[1759108512637,4.2966,209.37,209.32,22.16]
[1759108512836,7.49,209.36,209.32,29.28]
[1759108514234,7.49,209.36,209.33,7.12]
[1759108514632,4.2957,209.42,209.35,1.40264549]
[1759108514830,8.89264549,209.43,209.36,7.12]
[1759108515135,7.49,209.43,209.36,7.12]
[1759108516530,4.2956,209.42,209.36,7.12]
[1759108521037,7.49,209.43,209.36,7.12]
[1759108521440,11.7855,209.43,209.36,7.12]
[1759108521829,11.7855,209.43,209.33,1.40264549]
[1759108521830,1.40264549,209.42,209.33,1.40264549]
[1759108522035,7.49,209.39,209.32,73.92]
[1759108522229,1.40264549,209.38,209.32,66.8]
[1759108522433,1.40264549,209.38,209.25,1.40264549]
[1759108522434,1.40264549,209.34,209.25,1.40264549]
[1759108522629,7.49,209.33,209.24,12.7012294]
[1759108522836,7.49,209.29,209.23,65.76]
[1759108523135,7.49,209.27,209.19,15.42642567]
[1759108523336,1.40264549,209.26,209.19,15.42642567]
[1759108523539,1.40264549,209.23,209.19,14.5947354]
[1759108523734,8.99264549,209.21,209.12,347.24]
[1759108524039,8.99264549,209.21,209.14,0.83183937]
[1759108524441,8.99264549,209.21,209.14,15.22073961]
[1759108524741,8.99264549,209.21,209.14,0.83183937]
[1759108526344,4.3001,209.2,209.14,0.83183937]
[1759108526643,7.59,209.18,209.14,0.83183937]
[1759108527644,7.59,209.18,209.14,7.96183937]
[1759108527843,7.59,209.18,209.14,22.63318415]
[1759108528738,4.3001,209.2,209.14,22.63318415]
[1759108528938,7.59,209.18,209.14,14.67134478]
[1759108529138,11.8905,209.18,209.1,117.75202831]
[1759108529335,1.40264549,209.15,209.1,117.75202831]
[1759108529538,1.40264549,209.15,209.1,116.92]
[1759108529738,7.59,209.14,209.05,8.53264549]
[1759108530244,7.59,209.14,209.06,0.83225714]
[1759108531040,7.59,209.14,209.06,5.13515714]
[1759108531246,7.59,209.17,209.07,7.13]
[1759108531448,7.59,209.17,209.1,1.40264549]
[1759108532936,1.40264549,209.18,209.06,0.83225714]
[1759108533141,7.59,209.15,209.05,7.13]
[1759108533343,7.59,209.15,209.09,1.40264549]
[1759108535146,1.40264549,209.14,209.04,7.13]
[1759108535341,1.40264549,209.12,209.04,7.13]
[1759108535542,7.59,209.11,209.02,1.40264549]
[1759108535845,7.59,209.09,209.02,14.61375063]
[1759108536045,7.59,209.09,209.02,1.40264549]
[1759108536943,7.59,209.09,209.04,1.40264549]
[1759108537145,7.59,209.09,209.05,7.13]
[1759108537850,7.59,209.11,209.04,1.40264549]
[1759108538047,11.892,209.11,209.02,1.40264549]
[1759108538252,7.59,209.11,209.04,1.40264549]
[1759108539350,7.59,209.11,209.04,5.70594549]
[1759108539546,7.59,209.11,209.03,7.13]
[1759108540447,8.99264549,209.11,209.03,7.13]
[1759108541054,7.59,209.1,209.02,14.04569586]
[1759108541251,4.3024,209.09,209.01,118.11231685]
[1759108542148,4.3024,209.09,209.01,0.83231685]
[1759108542348,4.3024,209.09,209.01,118.13231685]
[1759108543250,13.29544549,209.08,209.01,0.83231685]
[1759108543558,7.59,209.08,209.01,0.83231685]
[1759108543753,7.59,209.08,209.01,7.96231685]
[1759108544646,7.59,209.11,209.02,7.13]
[1759108545556,7.59,209.11,209.02,11.4338]
[1759108546957,7.59,209.15,209.07,1.40264549]
[1759108547149,7.59,209.15,209.08,117.4]
[1759108547550,7.59,209.14,209.08,117.4]
[1759108547854,8.99264549,209.14,209.08,117.4]
[1759108550360,8.99264549,209.14,209.05,7.13]
[1759108550655,1.40264549,209.11,209.05,57.37]
[1759108550861,1.40264549,209.11,209.05,50.24]
[1759108551250,7.59,209.1,209.05,50.24]
[1759108551456,5.70474549,209.11,209.05,50.24]
[1759108551652,7.59,209.1,209.02,7.13]
[1759108551856,1.40264549,209.09,209.02,7.13]
[1759108552360,11.8927,209.08,209.02,7.13]
[1759108552858,7.59,209.06,209.02,7.13]
[1759108553058,4.303,209.07,209.02,7.13]
[1759108553360,7.59,209.06,209.0,465.04]
[1759108553760,11.8932,209.06,209.0,117.44]
[1759108554059,7.59,209.06,209.0,117.44]
[1759108554460,7.59,209.06,208.99,7.13]
[1759108554657,4.3036,209.04,208.99,7.13]
[1759108554860,7.95,209.02,208.93,7.13]
[1759108555053,7.95,209.02,208.95,0.83263548]
[1759108555254,7.95,209.02,208.95,14.87302169]
[1759108555456,4.3042,209.01,208.95,14.87302169]
[1759108555763,1.40264549,209.01,208.94,117.56]
[1759108556257,7.95,209.02,208.94,117.56]
[1759108557563,12.254,209.02,208.94,117.56]
[1759108558061,7.95,209.02,208.94,117.56]
[1759108558256,7.95,209.02,208.93,124.67]
[1759108558465,7.95,209.02,208.93,139.04752979]
[1759108558761,7.95,209.02,208.93,139.02752979]
[1759108559769,4.3035,209.04,208.94,7.13]
[1759108560067,12.2535,209.04,208.94,7.13]
[1759108560262,7.95,209.04,208.94,7.13]
[1759108560861,4.304,209.01,208.94,7.13]
[1759108561465,7.95,208.98,208.92,0.832765]
[1759108561766,7.95,209.02,208.93,7.13]
[1759108563266,4.3049,208.97,208.89,7.13]
[1759108563564,4.3049,208.97,208.89,117.62]
[1759108563770,4.3038,209.02,208.93,7.13]
[1759108565768,4.3038,209.02,208.92,18.97753957]
[1759108565769,7.95,209.03,208.95,7.13]
[1759108567071,12.2538,209.03,208.95,7.13]
[1759108567970,2.01425165,209.11,208.98,7.13]
[1759108568164,7.95,209.1,208.99,2.01425165]
[1759108568369,7.95,209.1,209.0,7.13]
[1759108568672,4.3026,209.09,209.0,11.4342]
[1759108569462,7.95,209.1,209.01,11.4338]
[1759108569772,7.95,209.1,209.02,7.13]
[1759108570773,7.95,209.1,209.03,4.3036]
[1759108571070,4.3016,209.13,209.04,7.13]
[1759108571572,7.95,209.14,209.05,7.13]
[1759108571970,8.39854381,209.18,209.09,7.12]
[1759108573077,8.39854381,209.18,209.1,4.3021]
[1759108573370,0.89854381,209.18,209.11,7.12]
[1759108573873,0.89854381,209.18,209.12,4.3018]
[1759108574374,7.5,209.21,209.13,7.12]
[1759108574767,4.2992,209.25,209.13,7.12]
[1759108575074,7.5,209.25,209.15,7.12]
[1759108576570,7.5,209.25,209.16,4.3009]
[1759108576768,7.5,209.27,209.18,7.12]
[1759108577172,4.2989,209.26,209.18,7.12]
[1759108577685,7.5,209.26,209.13,4.3014]
[1759108577870,66.8851,209.22,209.11,125.25089913]
[1759108578069,7.5,209.2,209.11,125.25089913]
[1759108578981,7.5,209.2,209.12,7.12]
[1759108579181,7.5,209.24,209.12,7.12]
[1759108579378,11.7995,209.24,209.12,7.12]
[1759108579570,7.5,209.24,209.12,7.12]
[1759108580585,4.2998,209.22,209.12,7.12]
[1759108581380,7.5,209.21,209.12,7.12]
[1759108582276,7.5,209.3,209.18,7.12]
[1759108582880,11.7982,209.3,209.18,7.12]
[1759108583083,11.7982,209.3,209.19,7.12]
[1759108583280,11.7982,209.3,209.2,4.3001]
[1759108583482,11.7982,209.3,209.21,7.12]
[1759108583683,7.5,209.3,209.21,7.12]
[1759108583883,4.2976,209.33,209.21,9.13425165]
[1759108584385,4.2979,209.31,209.21,9.13425165]
[1759108586184,4.2983,209.29,209.21,23.68316111]
[1759108586384,4.2983,209.29,209.21,9.13425165]
[1759108587086,12.2378,209.32,209.21,9.13425165]
[1759108587585,4.2981,209.3,209.21,9.13425165]
[1759108589291,12.2385,209.28,209.21,21.57573509]
[1759108589483,7.94,209.32,209.21,7.12]
[1759108589683,4.298,209.31,209.21,4.2999]
[1759108589884,7.94,209.36,209.24,2.01425165]
[1759108590084,7.94,209.36,209.25,7.15]
[1759108590490,7.94,209.36,209.28,7.15]
[1759108591387,7.94,209.4,209.29,7.15]
[1759108591790,4.2962,209.39,209.3,4.298]
[1759108592190,7.94,209.38,209.29,7.15]
[1759108593090,4.297,209.36,209.29,7.15]
[1759108593894,7.94,209.38,209.29,7.15]
[1759108594795,4.297,209.36,209.29,7.15]
[1759108595384,7.94,209.33,209.25,7.15]
[1759108595588,7.94,209.33,209.25,125.23]
[1759108595789,7.94,209.33,209.25,7.15]
[1759108596987,66.8469,209.34,209.21,21.72189677]
[1759108597192,7.94,209.4,209.3,7.15]
[1759108597895,7.94,209.4,209.31,4.2978]
[1759108599898,7.94,209.4,209.3,7.15]
[1759108600696,4.2964,209.39,209.3,7.15]
[1759108601999,4.2966,209.37,209.3,7.15]
[1759108602200,7.94,209.4,209.3,7.15]
[1759108602700,4.2962,209.39,209.3,11.4478]
[1759108605911,7.94,209.4,209.32,7.15]
[1759108606405,12.2353,209.44,209.3,66.8582]
[1759108606601,7.94,209.44,209.31,7.15]
[1759108607709,7.94,209.44,209.32,4.2976]
[1759108608602,12.2362,209.4,209.32,4.2976]
[1759108609302,12.2362,209.4,209.33,7.15]
[1759108609502,7.94,209.4,209.33,11.4473]
[1759108609698,7.94,209.46,209.34,7.15]
[1759108609900,7.94,209.55,209.37,7.15]
[1759108610205,7.94,209.55,209.39,7.15]
[1759108610704,7.94,209.49,209.4,4.296]
[1759108611208,4.2944,209.48,209.39,7.15]
[1759108613008,4.2948,209.47,209.39,7.15]
[1759108613209,7.94,209.46,209.39,7.15]
[1759108617111,12.235,209.46,209.39,7.15]
[1759108618111,7.52,209.44,209.33,11.4073]
[1759108618599,4.2956,209.43,209.33,11.4073]
[1759108618801,7.52,209.44,209.33,11.4073]
[1759108619713,11.8158,209.42,209.33,11.4073]
[1759108619914,11.8158,209.42,209.33,7.11]
[1759108620210,7.52,209.39,209.33,7.11]
[1759108621707,7.52,209.39,209.33,11.4074]
[1759108621903,11.8155,209.43,209.33,11.4074]
[1759108622306,11.815,209.45,209.37,1.40055965]
[1759108622511,7.52,209.45,209.38,7.11]
[1759108622915,7.52,209.45,209.39,1.40055965]
[1759108624216,7.52,209.45,209.36,4.2968]
[1759108624419,7.52,209.45,209.36,5.69735965]
[1759108624716,7.52,209.45,209.37,7.11]
[1759108625716,11.8152,209.45,209.37,7.11]